[Event "NOR-ch Clubs 2017"]
[Site "Kristiansund"]
[Date "2017.10.21"]
[Round "4"]
[White "Simensen, Vegard"]
[Black "Satre, Stig"]
[Result "1/2-1/2"]
[ECO "D45"]
[WhiteElo "1969"]
[BlackElo "1768"]
[Annotator "NA RC"]
[PlyCount "60"]
[EventDate "2017.??.??"]
[EventType "team-tourn"]
[EventCountry "NOR"]
[SourceTitle "playchess.com"]
[Source "ChessBase"]
[SourceQuality "1"]
[TimeControl "40/5400:1800"]

1. d4 c6 2. Nf3 d5 {[%emt 0:01:37]} 3. c4 {[%emt 0:02:47]} Nf6 {[%emt 0:01:21]} 4. Nc3 {[%emt 0:03:47]} e6 {[%emt 0:02:08]} 5. e3 {[%emt 0:02:16]} Be7 {[%emt 0:03:51]} 6. Qc2 {[%emt 0:04:56]} O-O {[%emt 0:03:33]} 7. Bd3 {[%emt 0:03:28]} Nbd7 {[%emt 0:00:42]} 8. O-O {[%emt 0:02:13]} b6 {[%emt 0:02:31]} 9. e4 {[%emt 0:09:40]} dxe4 {[%emt 0:01:24]} 10. Nxe4 {[%emt 0:00:55]} Bb7 {[%emt 0:01:29]} 11. Rd1 {[%emt 0:09:44]} Rc8 {[%emt 0:01:23]} 12. Nxf6+ {[%emt 0:04:41]} Nxf6 {[%emt 0:00:32]} 13. c5 {[%emt 0:05:08]} Re8 {[%emt 0:02:55]} 14. b4 {[%emt 0:02:33]} b5 {[%emt 0:01:16]} 15. a4 {[%emt 0:06:11]} a6 {[%emt 0:00:32]} 16. Bf4 {[%emt 0:06:21]} g6 {[%emt 0:01:29]} 17. Be5 {[%emt 0:02:24]} Nd5 {[%emt 0:04:19]} 18. Qd2 {[%emt 0:02:39]} Bf8 {[%emt 0:01:25]} 19. a5 {[%emt 0:01:34]} f6 {[%emt 0:01:31]} 20. Bg3 {[%emt 0:01:16]} Kf7 {[%emt 0:00:31]} 21. h4 {[%emt 0:01:31]} Bg7 {[%emt 0:02:27]} 22. Rab1 {[%emt 0:01:41]} Ne7 {[%emt 0:00:24]} 23. Re1 {[%emt 0:01:14]} Nf5 {[%emt 0:00:15]} 24. Bxf5 {[%emt 0:01:14]} exf5 {[%emt 0:00:30]} 25. Bd6 {[%emt 0:01:39]} Qd7 {[%emt 0:01:31]} 26. Qa2+ {[%emt 0:01:08]} Re6 {[%emt 0:00:56]} 27. Re2 {[%emt 0:00:48]} Rce8 {[%emt 0:00:39]} 28. Rbe1 {[%emt 0:00:14]} Bc8 {[%emt 0:00:24]} 29. Re3 {[%emt 0:01:46]} Bh6 {[%emt 0:00:58]} 30. R3e2 {[%emt 0:00:26]} Kg7 {[%emt 0:02:06]} 1/2-1/2

[Event "NOR-ch Clubs 2017"]
[Site "Kristiansund"]
[Date "2017.10.21"]
[Round "4"]
[White "Storeide, Erling"]
[Black "Nyland, Thomas"]
[Result "1/2-1/2"]
[ECO "B27"]
[WhiteElo "1840"]
[BlackElo "2152"]
[Annotator "ChessBase"]
[PlyCount "132"]
[EventDate "2017.??.??"]
[EventType "team-tourn"]
[EventCountry "NOR"]
[SourceTitle "playchess.com"]
[Source "ChessBase"]
[SourceQuality "1"]
[TimeControl "40/5400:1800"]

1. e4 {[%emt 0:00:00]} c5 {[%emt 0:01:13]} 2. Nf3 {[%emt 0:02:37]} g6 {[%emt 0:00:28]} 3. c3 {[%emt 0:00:24]} d5 {[%emt 0:03:34]} 4. exd5 {[%emt 0:01:22]} Qxd5 {[%emt 0:00:42]} 5. d4 {[%emt 0:00:21]} Bg7 {[%emt 0:01:12]} 6. Be3 {[%emt 0:01:56]} cxd4 {[%emt 0:06:42]} 7. cxd4 {[%emt 0:02:13]} Nf6 {[%emt 0:01:03]} 8. Nc3 {[%emt 0:00:23]} Qa5 {[%emt 0:00:55]} 9. Be2 {[%emt 0:03:17]} O-O {[%emt 0:01:03]} 10. O-O {[%emt 0:00:16]} Nc6 {[%emt 0:02:49]} 11. a3 {[%emt 0:01:07]} Nd5 {[%emt 0:04:26]} 12. Nxd5 {[%emt 0:02:14]} Qxd5 {[%emt 0:00:05]} 13. b4 {[%emt 0:02:27]} Rd8 {[%emt 0:01:13]} 14. Rc1 {[%emt 0:04:30]} Nxd4 {[%emt 0:04:28]} 15. Nxd4 {[%emt 0:00:50]} Bxd4 {[%emt 0:00:08]} 16. Bf3 {[%emt 0:01:17]} Qe5 {[%emt 0:10:06]} 17. Bxd4 {[%emt 0:01:42]} Rxd4 {[%emt 0:01:09]} 18. Qe1 {[%emt 0:01:29]} Qd6 {[%emt 0:01:57]} 19. Qe2 {[%emt 0:03:55]} Bf5 {[%emt 0:02:53]} 20. Rfe1 {[%emt 0:04:25]} e6 {[%emt 0:08:26]} 21. Bxb7 {[%emt 0:05:26]} Rd8 {[%emt 0:00:22]} 22. h3 {[%emt 0:00:38]} Qb6 {[%emt 0:04:07]} 23. Bc6 {[%emt 0:02:02]} Rd3 {[%emt 0:02:33]} 24. g4 {[%emt 0:01:17]} Rd2 {[%emt 0:13:27]} 25. Qe3 {[%emt 0:04:04]} Qxe3 {[%emt 0:02:00]} 26. Rxe3 {[%emt 0:00:09]} Bd3 {[%emt 0:01:30]} 27. Rc3 {[%emt 0:04:26]} Rd1+ {[%emt 0:00:47]} 28. Kg2 {[%emt 0:00:14]} Rd6 {[%emt 0:02:04]} 29. Bf3 {[%emt 0:03:01]} Rd2 {[%emt 0:01:25]} 30. a4 {[%emt 0:06:00]} a6 {[%emt 0:01:44]} 31. Be4 {[%emt 0:03:06]} Bxe4+ {[%emt 0:00:46]} 32. Rxe4 {[%emt 0:00:09]} Rb2 {[%emt 0:00:30]} 33. Rc8+ {[%emt 0:05:26]} Kg7 {[%emt 0:00:06]} 34. Rb8 {[%emt 0:00:24]} Rdd2 {[%emt 0:00:35]} 35. Rf4 {[%emt 0:00:23]} e5 {[%emt 0:00:15]} 36. Rf3 {[%emt 0:02:11]} e4 {[%emt 0:00:06]} 37. Rf4 {[%emt 0:00:18]} e3 {[%emt 0:00:08]} 38. Rb7 {[%emt 0:00:57]} Rxf2+ {[%emt 0:00:09]} 39. Rxf2 {[%emt 0:01:56]} Rxf2+ {[%emt 0:00:04]} 40. Kg3 {[%emt 0:00:07]} Ra2 {[%emt 0:31:43]} 41. a5 {[%emt 0:31:30]} Rb2 {[%emt 0:00:00]} 42. g5 {[%emt 0:00:00]} Rb1 {[%emt 0:00:00]} 43. Kf3 {[%emt 0:00:00]} Rb3 {[%emt 0:00:00]} 44. h4 {[%emt 0:00:00]} Kf8 {[%emt 0:00:00]} 45. Ke2 {[%emt 0:00:00]} Kg7 {[%emt 0:00:00]} 46. Kf3 {[%emt 0:00:00]} Rc3 {[%emt 0:00:00]} 47. Rb6 {[%emt 0:00:00]} Rc4 {[%emt 0:00:00]} 48. Rxa6 {[%emt 0:00:00]} Rxb4 {[%emt 0:00:00]} 49. Ra8 {[%emt 0:00:00]} Re4 {[%emt 0:00:00]} 50. Ke2 {[%emt 0:00:00]} Rxh4 {[%emt 0:00:00]} 51. a6 {[%emt 0:00:00]} Ra4 {[%emt 0:00:00]} 52. a7 {[%emt 0:00:00]} Ra3 {[%emt 0:00:00]} 53. Kf3 {[%emt 0:00:00]} h6 {[%emt 0:00:00]} 54. gxh6+ {[%emt 0:00:00]} Kh7 {[%emt 0:00:00]} 55. Ke2 {[%emt 0:00:00]} f5 {[%emt 0:00:00]} 56. Kf3 {[%emt 0:00:00]} g5 {[%emt 0:00:00]} 57. Rf8 {[%emt 0:00:00]} Rxa7 {[%emt 0:00:00]} 58. Rxf5 {[%emt 0:00:00]} Kg6 {[%emt 0:00:00]} 59. Re5 {[%emt 0:00:00]} Rf7+ {[%emt 0:00:00]} 60. Kg3 {[%emt 0:00:00]} Kxh6 {[%emt 0:00:00]} 61. Rxe3 {[%emt 0:00:00]} Kh5 {[%emt 0:00:00]} 62. Re8 {[%emt 0:00:00]} Kg6 {[%emt 0:00:00]} 63. Kg4 {[%emt 0:00:00]} Rf4+ {[%emt 0:00:00]} 64. Kg3 {[%emt 0:00:00]} Rd4 {[%emt 0:00:00]} 65. Rg8+ {[%emt 0:00:00]} Kf6 {[%emt 0:00:00]} 66. Rf8+ {[%emt 0:00:00]} Kg7 {[%emt 0:00:00]} 1/2-1/2

[Event "NOR-ch Clubs 2017"]
[Site "Kristiansund"]
[Date "2017.10.21"]
[Round "4"]
[White "Storeide, Helge"]
[Black "Darnell, Anton"]
[Result "1/2-1/2"]
[ECO "E00"]
[WhiteElo "1722"]
[BlackElo "2078"]
[Annotator "NA RC"]
[PlyCount "85"]
[EventDate "2017.??.??"]
[EventType "team-tourn"]
[EventCountry "NOR"]
[SourceTitle "playchess.com"]
[Source "ChessBase"]
[SourceQuality "1"]
[TimeControl "40/5400:1800"]

1. d4 {[%emt 0:01:51]} Nf6 {[%emt 0:01:03]} 2. c4 {[%emt 0:00:06]} e6 {[%emt 0:00:44]} 3. a3 {[%emt 0:00:07]} b6 {[%emt 0:01:29]} 4. Nc3 {[%emt 0:00:11]} Bb7 {[%emt 0:00:14]} 5. Bg5 {[%emt 0:01:40]} d5 {[%emt 0:01:08]} 6. cxd5 {[%emt 0:02:18]} exd5 {[%emt 0:00:23]} 7. e3 {[%emt 0:00:27]} Be7 {[%emt 0:00:26]} 8. Bd3 {[%emt 0:01:02]} O-O {[%emt 0:00:22]} 9. Nf3 {[%emt 0:01:34]} Nbd7 {[%emt 0:00:27]} 10. O-O {[%emt 0:03:34]} c5 {[%emt 0:03:06]} 11. Rc1 {[%emt 0:01:57]} Rc8 {[%emt 0:00:40] E12: Queen's Indian: Unusual White 4th moves, 4 a3, 4 Nc3 Bb7 5 a3 and 4 Nc3 Bb7} (11... c4 12. Bb1 a6 13. Ne5 b5 14. Qf3 Re8 15. Qh3 Nf8 16. f4 Ne4 17. Nxe4 dxe4 18. Bxe7 Qxe7 19. f5 {0-1 (57) Indjic,A (2547)-Morozevich,A (2683) Kazan 2016}) 12. Bf5 {[%emt 0:00:57]} g6 {[%emt 0:18:41]} 13. Bh3 {[%emt 0:05:02]} cxd4 $146 {[%emt 0:01:23]} ({Predecessor:} 13... Ne4 14. Bh6 Re8 15. Nxe4 dxe4 16. dxc5 exf3 17. Bxd7 fxg2 18. Re1 Bf3 19. Qa4 bxc5 20. Bxe8 Qxe8 {1-0 (28) Chen,P (2289)-Ratsma,M (2131) Groningen 2015}) 14. exd4 {[%emt 0:01:41]} Ne4 {[%emt 0:05:02]} 15. Bxe7 {[%emt 0:07:02]} Qxe7 {[%emt 0:00:56]} 16. Re1 {[%emt 0:02:17]} f5 {[%emt 0:05:56]} 17. Qb3 {[%emt 0:02:05]} Qf7 {[%emt 0:11:50]} 18. g3 {[%emt 0:13:16]} Rfe8 {[%emt 0:04:06]} 19. Bg2 {[%emt 0:17:42]} Kg7 {[%emt 0:02:24]} 20. Qd1 {[%emt 0:03:57]} h6 {[%emt 0:05:25]} 21. Bf1 {[%emt 0:05:31]} a6 {[%emt 0:04:17]} 22. Nh4 {[%emt 0:01:57]} g5 {[%emt 0:01:47]} 23. Ng2 {[%emt 0:00:41]} b5 {[%emt 0:02:11]} 24. f3 {[%emt 0:02:03]} Nxc3 {[%emt 0:00:21]} 25. Rxc3 {[%emt 0:01:43]} Rxc3 {[%emt 0:00:14]} 26. bxc3 {[%emt 0:00:02]} Nb6 {[%emt 0:00:32]} 27. Rxe8 {[%emt 0:02:01]} Qxe8 {[%emt 0:00:01]} 28. Qe2 {[%emt 0:00:58]} Qxe2 {[%emt 0:03:41]} 29. Bxe2 {[%emt 0:00:02]} Na4 {[%emt 0:00:12]} 30. Ne3 {[%emt 0:00:26]} Nxc3 {[%emt 0:00:29]} 31. Nxf5+ {[%emt 0:00:32]} Kf6 {[%emt 0:01:08]} 32. Bd3 {[%emt 0:00:09]} h5 {[%emt 0:01:00]} 33. Kg2 {[%emt 0:02:10]} Bc8 {[%emt 0:00:23]} 34. Ne3 {[%emt 0:00:32]} a5 {[%emt 0:00:40]} 35. Kf2 {[%emt 0:01:04]} b4 {[%emt 0:00:37]} 36. axb4 axb4 37. Bc2 {[%emt 0:00:27]} Be6 {[%emt 0:00:24]} 38. Nd1 {[%emt 0:00:19]} Bf5 {[%emt 0:05:29]} 39. Bb3 {[%emt 0:00:29]} Nxd1+ {[%emt 0:00:05]} 40. Bxd1 {[%emt 0:00:01]} Bd3 {[%emt 0:30:28]} 41. Ke3 {[%emt 0:01:07]} Bc4 {[%emt 0:00:00]} 42. Kd2 $11 {[%emt 0:05:30]} h4 {[%emt 0:00:00]} 43. Kc2 {[%emt 0:02:11] Ke5} 1/2-1/2

[Event "NOR-ch Clubs 2017"]
[Site "Kristiansund"]
[Date "2017.10.21"]
[Round "4"]
[White "Vestjord, Harald Christian"]
[Black "Sjoberg, Isak"]
[Result "0-1"]
[ECO "A70"]
[WhiteElo "1693"]
[BlackElo "2067"]
[Annotator "NA"]
[PlyCount "46"]
[EventDate "2017.??.??"]
[EventType "team-tourn"]
[EventCountry "NOR"]
[SourceTitle "playchess.com"]
[Source "ChessBase"]
[SourceQuality "1"]
[TimeControl "40/5400:1800"]

1. d4 {[%emt 0:01:10]} Nf6 {[%emt 0:01:30]} 2. c4 {[%emt 0:00:06]} c5 {[%emt 0:00:44]} 3. d5 {[%emt 0:00:09]} e6 {[%emt 0:00:03]} 4. Nc3 {[%emt 0:00:30]} exd5 {[%emt 0:00:05]} 5. cxd5 {[%emt 0:00:13]} d6 {[%emt 0:00:08]} 6. e4 {[%emt 0:01:14]} g6 {[%emt 0:00:17]} 7. Nf3 {[%emt 0:02:03]} Bg7 {[%emt 0:00:07]} 8. Bd3 {[%emt 0:04:46]} O-O {[%emt 0:00:10]} 9. O-O {[%emt 0:00:06]} a6 {[%emt 0:01:06]} 10. a4 {[%emt 0:00:53]} Bg4 {[%emt 0:00:06]} 11. h3 {[%emt 0:05:43]} Bxf3 {[%emt 0:00:14]} 12. Qxf3 {[%emt 0:00:03]} Nbd7 {[%emt 0:00:06]} 13. a5 {[%emt 0:05:05]} Re8 {[%emt 0:24:41]} 14. Re1 {[%emt 0:09:53]} Nh5 {[%emt 0:01:25]} 15. g4 {[%emt 0:04:48]} Ne5 {[%emt 0:00:21]} 16. Qe2 {[%emt 0:03:13]} Qh4 {[%emt 0:00:27]} 17. Kg2 {[%emt 0:09:33]} f5 {[%emt 0:03:07]} 18. gxh5 {[%emt 0:01:42]} f4 {[%emt 0:00:06]} 19. Bxf4 {[%emt 0:04:25]} Qxf4 {[%emt 0:00:08]} 20. Qe3 {[%emt 0:01:48]} Nxd3 {[%emt 0:18:38]} 21. Qxd3 {[%emt 0:00:09]} Re5 {[%emt 0:01:01]} 22. Re3 {[%emt 0:01:28]} Rf8 {[%emt 0:01:03]} 23. Rf3 {[%emt 0:01:14]} Rg5+ {[%emt 0:00:15]} 0-1

[Event "NOR-ch Clubs 2017"]
[Site "Kristiansund"]
[Date "2017.10.22"]
[Round "5"]
[White "Elseth, Roar"]
[Black "Bentsen, Hakon"]
[Result "1-0"]
[ECO "E06"]
[WhiteElo "2322"]
[BlackElo "2071"]
[Annotator "NA"]
[PlyCount "91"]
[EventDate "2017.??.??"]
[EventType "team-tourn"]
[EventCountry "NOR"]
[SourceTitle "playchess.com"]
[Source "ChessBase"]
[SourceQuality "1"]
[TimeControl "40/5400:1800"]

1. Nf3 {[%emt 0:00:19]} Nf6 {[%emt 0:00:18]} 2. c4 {[%emt 0:00:20]} e6 {[%emt 0:00:26]} 3. g3 {[%emt 0:02:58]} d5 {[%emt 0:00:34]} 4. d4 {[%emt 0:01:38]} Be7 {[%emt 0:00:23]} 5. Bg2 {[%emt 0:00:49]} O-O {[%emt 0:00:20]} 6. O-O {[%emt 0:00:58]} dxc4 {[%emt 0:00:18]} 7. Qa4 {[%emt 0:01:49]} a6 {[%emt 0:02:17]} 8. Qxc4 {[%emt 0:00:08]} b5 {[%emt 0:00:09]} 9. Qc2 {[%emt 0:00:40]} Bb7 {[%emt 0:00:08]} 10. Bf4 {[%emt 0:05:38] LiveBook: 502 Games} Nc6 {[%emt 0:10:51]} 11. a3 {[%emt 0:17:39] E05: Open Catalan: 5 Nf3 Be7} (11. Nc3 Nb4 12. Qc1 Qc8 13. a3 Nbd5 14. Nxd5 Nxd5 15. Bg5 f6 16. Bd2 c5 17. Ba5 f5 18. dxc5 Qxc5 19. Qxc5 Bxc5 20. Ng5 {1-0 (50) Short,N (2670)-Hou,Y (2649) Hoogeveen 2016}) 11... Nxd4 {[%emt 0:11:05]} 12. Nxd4 {[%emt 0:00:06]} Bxg2 {[%emt 0:00:03]} 13. Nxe6 {[%emt 0:01:37]} fxe6 {[%emt 0:00:09]} 14. Kxg2 {[%emt 0:00:07]} Nd5 $146 {[%emt 0:00:07]} ({Predecessor:} 14... Qd5+ 15. f3 c5 16. Nc3 Qc6 17. e4 Rac8 18. Rfd1 c4 {1-0 (35) Kauch,M (2241)-Fuhrmann,D (2286) Germany 2004}) 15. Bd2 {[%emt 0:02:42]} c5 {[%emt 0:04:40]} 16. Nc3 {[%emt 0:09:58]} Nxc3 {[%emt 0:02:54]} 17. Bxc3 {[%emt 0:00:59]} Bf6 {[%emt 0:07:56]} 18. Rad1 {[%emt 0:02:35]} Qc7 {[%emt 0:03:10]} 19. Qe4 {[%emt 0:01:47]} Rae8 {[%emt 0:00:29]} 20. Bxf6 {[%emt 0:02:36]} Rxf6 {[%emt 0:00:16]} 21. Rd2 {[%emt 0:01:23]} c4 {[%emt 0:03:59]} 22. f3 {[%emt 0:02:55]} Rd8 {[%emt 0:10:20] [#]} (22... e5 $142) 23. Rfd1 $1 {[%emt 0:00:16]} Rxd2 {[%emt 0:00:06]} 24. Rxd2 {[%emt 0:00:04]} a5 {[%emt 0:01:16]} 25. Qa8+ {[%emt 0:00:43]} Rf8 {[%emt 0:02:37]} 26. Qa6 {[%emt 0:00:58]} Qe5 {[%emt 0:00:38]} 27. Qxa5 {[%emt 0:01:20]} Qe3 {[%emt 0:00:11]} 28. Qc3 {[%emt 0:01:56]} Qxc3 {[%emt 0:00:10]} 29. bxc3 {[%emt 0:00:06]} Ra8 {[%emt 0:00:19]} 30. Ra2 {[%emt 0:00:09]} Kf7 {[%emt 0:00:21]} 31. Kf2 {[%emt 0:00:06]} e5 {[%emt 0:00:28]} 32. Ke3 {[%emt 0:00:24]} Ke6 {[%emt 0:00:08]} 33. Ke4 {[%emt 0:00:27]} g5 {[%emt 0:00:36]} 34. e3 {[%emt 0:07:03]} Ra7 {[%emt 0:01:18]} 35. h4 {[%emt 0:05:54]} gxh4 {[%emt 0:01:23]} 36. gxh4 {[%emt 0:00:08]} Ra8 {[%emt 0:00:20]} 37. h5 {[%emt 0:00:48]} h6 {[%emt 0:04:15]} 38. f4 {[%emt 0:02:25]} exf4 {[%emt 0:00:08]} 39. exf4 $14 {[%emt 0:00:18]} Kd6 {[%emt 0:04:08]} 40. Rg2 {[%emt 0:03:24]} Kc5 {[%emt 0:31:09]} 41. f5 {[%emt 0:33:05]} Rxa3 {[%emt 0:04:00]} 42. f6 {[%emt 0:00:00]} Kd6 {[%emt 0:00:00]} 43. Rf2 {[%emt 0:00:00]} Ra8 {[%emt 0:00:00]} 44. Kf5 {[%emt 0:00:00]} b4 {[%emt 0:00:00]} 45. cxb4 {[%emt 0:00:00]} c3 {[%emt 0:00:00]} 46. Re2 {[%emt 0:00:00]} 1-0

[Event "NOR-ch Clubs 2017"]
[Site "Kristiansund"]
[Date "2017.10.22"]
[Round "5"]
[White "Tryggestad, Andreas Garberg"]
[Black "Dahl, Trygve"]
[Result "1-0"]
[ECO "B07"]
[WhiteElo "2250"]
[BlackElo "2193"]
[Annotator "NA"]
[PlyCount "75"]
[EventDate "2017.??.??"]
[EventType "team-tourn"]
[EventCountry "NOR"]
[SourceTitle "playchess.com"]
[Source "ChessBase"]
[SourceQuality "1"]
[TimeControl "40/5400:1800"]

1. e4 {[%emt 0:00:01]} d6 {[%emt 0:09:13]} 2. d4 {[%emt 0:00:09]} Nf6 {[%emt 0:00:13]} 3. Nc3 {[%emt 0:00:06]} g6 {[%emt 0:00:15]} 4. f3 {[%emt 0:00:17]} c6 {[%emt 0:00:44] LiveBook: 314 Games} 5. h4 {[%emt 0:00:14] B07: Pirc Defence: Miscellaneous Systems} (5. Be3 b5 6. Qd2 Nbd7 7. O-O-O b4 8. Nce2 Qa5 9. Kb1 Ba6 10. Nc1 Bxf1 11. Rxf1 Nb6 12. Qd3 Bg7 13. Nb3 Qb5 14. Qxb5 cxb5 15. Na5 {0-1 (74) Triapishko,O (2508)-Mamedyarov,S (2791) Sochi 2017}) 5... h5 {[%emt 0:00:24]} 6. Be3 {[%emt 0:00:06]} b5 {[%emt 0:00:49]} 7. Qd2 {[%emt 0:00:20]} a6 {[%emt 0:01:38]} 8. a4 $146 {[%emt 0:01:52]} ({Predecessor:} 8. O-O-O Bg7 9. Kb1 Qc7 10. Bd3 e5 11. dxe5 dxe5 12. Nh3 Bxh3 13. Rxh3 Nbd7 14. Rhh1 Bf8 {1-0 (30) Berg,E (2539)-Andreasson,I (2335) Lidkoping 2013}) 8... b4 $1 {[%emt 0:04:54]} 9. Nce2 {[%emt 0:00:06]} a5 {[%emt 0:00:24]} 10. Nf4 {[%emt 0:00:08]} Ba6 {[%emt 0:03:52]} 11. Bxa6 {[%emt 0:00:24]} Nxa6 {[%emt 0:00:05]} 12. Ngh3 {[%emt 0:00:14]} Nd7 {[%emt 0:04:33]} 13. Ng5 {[%emt 0:00:19]} e5 {[%emt 0:04:57]} 14. Ne2 {[%emt 0:03:58]} Bg7 {[%emt 0:05:51]} (14... Qe7 $11 {keeps the balance.}) 15. c3 {[%emt 0:00:06]} Nb6 {[%emt 0:03:59]} 16. Qd3 {[%emt 0:01:17]} d5 {[%emt 0:17:48]} 17. dxe5 {[%emt 0:03:48]} Bxe5 {[%emt 0:02:12]} 18. Bd4 {[%emt 0:03:51]} Nd7 {[%emt 0:06:01]} 19. f4 {[%emt 0:08:34]} Nac5 {[%emt 0:05:56]} 20. Bxc5 {[%emt 0:01:16]} Nxc5 {[%emt 0:01:01]} 21. Qe3 {[%emt 0:00:01]} Bd6 {[%emt 0:01:58]} 22. exd5+ {[%emt 0:00:49]} Be7 {[%emt 0:00:59]} 23. cxb4 {[%emt 0:14:26]} axb4 {[%emt 0:00:40]} 24. dxc6 {[%emt 0:00:08]} O-O {[%emt 0:01:03]} 25. O-O {[%emt 0:01:14]} Nxa4 {[%emt 0:01:14]} 26. Rac1 {[%emt 0:00:20]} Nxb2 {[%emt 0:01:03]} 27. c7 {[%emt 0:00:13]} Qd7 {[%emt 0:01:01] [#]} 28. Qb3 $16 {[%emt 0:03:16]} (28. f5 $1 $18 {[%mdl 512] and the rest is easy.}) 28... Bf6 {[%emt 0:01:23]} 29. f5 {[%emt 0:02:15]} gxf5 {[%emt 0:02:43]} (29... Nd3 {was necessary.}) 30. Qg3 {[%emt 0:00:52]} Kh8 {[%emt 0:00:53]} 31. Qf3 {[%emt 0:00:10]} Kg7 {[%emt 0:00:17]} 32. Ng3 {[%emt 0:00:32]} Qd4+ {[%emt 0:00:04]} 33. Rf2 {[%emt 0:00:02]} Kg8 {[%emt 0:00:36]} 34. Nxf5 {[%emt 0:02:47]} Qe5 {[%emt 0:00:00]} 35. Qxh5 {[%emt 0:00:13]} Bxg5 {[%emt 0:00:27]} 36. Qxg5+ {[%emt 0:00:01]} Kh7 {[%emt 0:00:12]} 37. Qh5+ {[%emt 0:00:01]} Kg8 {[%emt 0:00:12]} 38. Nh6+ {[%emt 0:00:01]} 1-0

[Event "NOR-ch Clubs 2017"]
[Site "Kristiansund"]
[Date "2017.10.22"]
[Round "5"]
[White "David, Edwin"]
[Black "Haug, Johannes"]
[Result "1-0"]
[ECO "E46"]
[WhiteElo "2211"]
[BlackElo "2379"]
[Annotator "NA"]
[PlyCount "99"]
[EventDate "2017.??.??"]
[EventType "team-tourn"]
[EventCountry "NOR"]
[SourceTitle "playchess.com"]
[Source "ChessBase"]
[SourceQuality "1"]
[TimeControl "40/5400:1800"]

1. d4 {[%emt 0:00:05]} Nf6 {[%emt 0:00:22]} 2. c4 {[%emt 0:00:10]} e6 {[%emt 0:00:04]} 3. Nc3 {[%emt 0:00:06]} Bb4 {[%emt 0:00:04]} 4. e3 {[%emt 0:00:09]} O-O {[%emt 0:00:08]} 5. Nge2 {[%emt 0:00:11]} c6 {[%emt 0:00:28] E46: Nimzo-Indian: Rubinstein: 4 e3 0-0 5 Ne2 without early Bd3} (5... d5 6. a3 Be7 7. cxd5 exd5 8. Nf4 c6 9. Bd3 Na6 10. O-O Nc7 11. Qc2 Bd6 12. f3 Re8 13. Nce2 Qe7 14. Ng3 c5 15. Qf2 b6 16. Bd2 g6 17. dxc5 bxc5 {0-1 (28) Nakamura,H (2787)-Carlsen,M (2853) chess.com INT 2016}) 6. a3 {[%emt 0:00:35]} Ba5 {[%emt 0:00:04]} 7. Qc2 {[%emt 0:15:02] LiveBook: 41 Games} d5 {[%emt 0:00:31]} 8. Ng3 {[%emt 0:02:47]} Bc7 {[%emt 0:15:56]} 9. cxd5 $146 {[%emt 0:08:25]} ({Predecessor:} 9. Be2 e5 10. dxe5 Bxe5 11. O-O Qe7 12. Bd2 Rd8 13. Rad1 dxc4 14. Bxc4 {0-1 (40) Zelesco,K (2256)-Ly,M (2463) Melbourne 2014}) 9... exd5 {[%emt 0:00:12]} 10. Bd3 {[%emt 0:00:15]} Re8 {[%emt 0:03:41]} 11. Nce2 {[%emt 0:03:49]} Nbd7 {[%emt 0:04:21]} 12. f3 {[%emt 0:02:28]} Qe7 {[%emt 0:27:19]} 13. b4 {[%emt 0:02:38]} a5 {[%emt 0:00:51]} 14. Rb1 {[%emt 0:00:22]} Nf8 {[%emt 0:02:40]} 15. O-O {[%emt 0:01:39]} h5 {[%emt 0:01:21]} 16. b5 {[%emt 0:13:02]} Bd7 {[%emt 0:13:21]} 17. bxc6 {[%emt 0:03:01]} bxc6 {[%emt 0:00:05]} 18. Rb7 {[%emt 0:01:59]} Bc8 {[%emt 0:05:10]} 19. Rb1 {[%emt 0:01:43]} Ba6 {[%emt 0:00:19]} 20. Bxa6 {[%emt 0:08:10]} Rxa6 {[%emt 0:00:01]} 21. a4 {[%emt 0:00:26]} Qd7 {[%emt 0:02:34]} 22. Bd2 {[%emt 0:01:11]} g6 {[%emt 0:01:48]} 23. Rfc1 {[%emt 0:01:00]} Ne6 {[%emt 0:00:45]} 24. h4 {[%emt 0:06:31]} Qe7 {[%emt 0:01:02]} 25. Qd3 {[%emt 0:00:18]} Rea8 {[%emt 0:00:04]} 26. Be1 {[%emt 0:02:52]} Nd7 {[%emt 0:01:12]} 27. Nf1 {[%emt 0:00:35]} Ng7 {[%emt 0:00:59]} 28. Rb7 {[%emt 0:01:18]} Nf6 {[%emt 0:00:46]} 29. Bg3 {[%emt 0:00:09]} Nge8 {[%emt 0:00:09]} 30. Qc3 {[%emt 0:04:10]} Qd8 {[%emt 0:00:20]} 31. Bxc7 {[%emt 0:00:41]} Nxc7 {[%emt 0:00:01]} 32. Nf4 {[%emt 0:00:19]} Nfe8 {[%emt 0:00:15]} 33. Qe1 {[%emt 0:00:31]} Nd6 {[%emt 0:00:14]} 34. Rbb1 $11 {[%emt 0:00:02]} Nf5 {[%emt 0:00:14]} 35. g3 {[%emt 0:00:16]} Ne8 {[%emt 0:00:13]} 36. Nd3 {[%emt 0:00:01]} Ned6 {[%emt 0:00:14]} 37. Ne5 {[%emt 0:00:03]} Qe8 {[%emt 0:00:03]} 38. Rc3 {[%emt 0:00:54]} f6 {[%emt 0:00:36]} 39. Nd3 {[%emt 0:00:01]} Nc4 {[%emt 0:00:05]} 40. Nc5 R6a7 41. g4 {[%emt 0:31:34]} hxg4 {[%emt 0:30:07]} 42. fxg4 {[%emt 0:00:01]} Nfd6 {[%emt 0:00:08]} 43. Qf2 {[%emt 0:00:13]} Rf7 {[%emt 0:00:23]} 44. Ng3 {[%emt 0:00:05]} f5 {[%emt 0:00:12]} 45. gxf5 {[%emt 0:00:00]} Nxf5 {[%emt 0:00:00]} 46. Nxf5 {[%emt 0:00:00]} Rxf5 {[%emt 0:00:00]} 47. Qg3 {[%emt 0:00:00]} Qf7 {[%emt 0:00:00]} 48. e4 {[%emt 0:00:00]} Rf4 {[%emt 0:00:00]} 49. Ne6 {[%emt 0:00:00]} Rxe4 {[%emt 0:00:00]} 50. Rb8+ {[%emt 0:00:00]} 1-0